[Event "GrandPrix_29.05"]
[Site "Chess.com"]
[Date "2020.05.29"]
[Round "3"]
[White "ulkaf961"]
[Black "Natalya_Buksa"]
[Result "0-1"]
[WhiteElo "1863"]
[BlackElo "2151"]
[TimeControl "600+2"]
[EndTime "10:27:03 PDT"]
[Termination "Natalya_Buksa won by resignation"]

1. b3 {[%clk 0:09:53.7]} 1... e5 {[%clk 0:09:59.6]} 2. Bb2 {[%clk 0:09:54.1]}
2... Nc6 {[%clk 0:10:00.9]} 3. g3 {[%clk 0:09:50.7]} 3... g6 {[%clk 0:10:01.6]}
4. Bg2 {[%clk 0:09:51.2]} 4... Bg7 {[%clk 0:10:02.8]} 5. e3 {[%clk 0:09:23.9]}
5... Nge7 {[%clk 0:10:02.3]} 6. Ne2 {[%clk 0:09:22.9]} 6... O-O {[%clk
0:09:54.1]} 7. O-O {[%clk 0:09:23.2]} 7... d6 {[%clk 0:09:53.7]} 8. Nbc3 {[%clk
0:09:02.4]} 8... Be6 {[%clk 0:07:58.8]} 9. f4 {[%clk 0:08:24]} 9... f5 {[%clk
0:07:56.4]} 10. d3 {[%clk 0:07:45.2]} 10... Qd7 {[%clk 0:07:56]} 11. e4 {[%clk
0:06:54.2]} 11... fxe4 {[%clk 0:07:28.9]} 12. Nxe4 {[%clk 0:06:34]} 12... Bh3
{[%clk 0:07:28.5]} 13. Qd2 {[%clk 0:04:54.7]} 13... Bxg2 {[%clk 0:06:34]} 14.
Kxg2 {[%clk 0:04:54.5]} 14... Nf5 {[%clk 0:06:35]} 15. Kh1 {[%clk 0:03:12.9]}
15... Rae8 {[%clk 0:06:26.8]} 16. fxe5 {[%clk 0:03:03.1]} 16... Nxe5 {[%clk
0:06:25.3]} 17. Nf4 {[%clk 0:02:37.3]} 17... b6 {[%clk 0:05:24.2]} 18. c4 {[%clk
0:02:19.6]} 18... Ng4 {[%clk 0:04:38.5]} 19. Rae1 {[%clk 0:01:57.1]} 19... Nd4
{[%clk 0:04:20.5]} 20. Qg2 {[%clk 0:01:38.9]} 20... Be5 {[%clk 0:03:53.8]} 21.
Ng5 {[%clk 0:01:08.5]} 21... c6 {[%clk 0:02:32.8]} 22. Re4 {[%clk 0:01:07.6]}
22... Nf5 {[%clk 0:01:18]} 23. Rfe1 {[%clk 0:00:24.1]} 23... Nfe3 {[%clk
0:00:22.3]} 24. R4xe3 {[%clk 0:00:14.9]} 24... Nxe3 {[%clk 0:00:20.8]} 25. Rxe3
{[%clk 0:00:15.2]} 25... Bxf4 {[%clk 0:00:22.2]} 26. Rxe8 {[%clk 0:00:13.3]}
26... Qxe8 {[%clk 0:00:23.2]} 27. Ne4 {[%clk 0:00:07.8]} 27... Be5 {[%clk
0:00:23.4]} 28. d4 {[%clk 0:00:07.3]} 28... Bg7 {[%clk 0:00:24.4]} 29. h3 {[%clk
0:00:03.2]} 29... Qe6 {[%clk 0:00:25.4]} 30. d5 {[%clk 0:00:02.5]} 30... cxd5
{[%clk 0:00:25.6]} 31. cxd5 {[%clk 0:00:03.3]} 31... Qe7 {[%clk 0:00:16.4]} 32.
Bxg7 {[%clk 0:00:04.2]} 32... Kxg7 {[%clk 0:00:16.9]} 33. Qb2+ {[%clk
0:00:03.4]} 33... Qe5 {[%clk 0:00:18.1]} 34. Qc2 {[%clk 0:00:04.7]} 34... Re8
{[%clk 0:00:17.2]} 35. Qc7+ {[%clk 0:00:05.4]} 35... Re7 {[%clk 0:00:18.3]} 36.
Qxd6 {[%clk 0:00:06.6]} 36... Qxe4+ {[%clk 0:00:18.3]} 0-1

[Event "GrandPrix_29.05"]
[Site "Chess.com"]
[Date "2020.05.29"]
[Round "3"]
[White "bsnsun"]
[Black "eljanov"]
[Result "0-1"]
[WhiteElo "2116"]
[BlackElo "2504"]
[TimeControl "600+2"]
[EndTime "10:27:07 PDT"]
[Termination "eljanov won by resignation"]

1. Nf3 {[%clk 0:10:01.9]} 1... d5 {[%clk 0:09:59.8]} 2. g3 {[%clk 0:10:00.5]}
2... Nf6 {[%clk 0:09:58.9]} 3. Bg2 {[%clk 0:10:00.6]} 3... c5 {[%clk 0:10:00.5]}
4. O-O {[%clk 0:09:59.8]} 4... e6 {[%clk 0:10:02.1]} 5. d4 {[%clk 0:09:56.9]}
5... cxd4 {[%clk 0:09:57.5]} 6. Nxd4 {[%clk 0:09:57.3]} 6... e5 {[%clk
0:09:56.7]} 7. Nb3 {[%clk 0:09:38.5]} 7... Be6 {[%clk 0:08:32.3]} 8. Bg5 {[%clk
0:08:31.2]} 8... Nbd7 {[%clk 0:08:32.5]} 9. c4 {[%clk 0:07:57.3]} 9... dxc4
{[%clk 0:08:19.9]} 10. N3d2 {[%clk 0:07:53]} 10... Be7 {[%clk 0:07:17.5]} 11.
Bxb7 {[%clk 0:06:32.5]} 11... Rb8 {[%clk 0:07:17.3]} 12. Ba6 {[%clk 0:06:33.7]}
12... Qb6 {[%clk 0:06:41.3]} 13. Bxc4 {[%clk 0:06:14]} 13... Qxb2 {[%clk
0:06:41.9]} 14. Bxf6 {[%clk 0:04:36.2]} 14... gxf6 {[%clk 0:05:37.2]} 15. Bxe6
{[%clk 0:04:03.2]} 15... fxe6 {[%clk 0:05:39.1]} 16. Nb3 {[%clk 0:03:54.7]}
16... Nb6 {[%clk 0:04:35]} 17. N1d2 {[%clk 0:03:51.5]} 17... O-O {[%clk
0:04:35]} 18. e3 {[%clk 0:03:52]} 18... f5 {[%clk 0:04:26.8]} 19. e4 {[%clk
0:03:05.5]} 19... Kh8 {[%clk 0:04:14.6]} 20. Qf3 {[%clk 0:02:54.4]} 20... Rbc8
{[%clk 0:03:53.2]} 21. Rfe1 {[%clk 0:02:29.2]} 21... Bb4 {[%clk 0:03:32.5]} 22.
Reb1 {[%clk 0:01:23.8]} 22... Qa3 {[%clk 0:03:02.7]} 23. Rd1 {[%clk 0:01:17]}
23... a5 {[%clk 0:01:57.2]} 24. exf5 {[%clk 0:01:10.1]} 24... a4 {[%clk
0:01:23.5]} 25. Nc1 {[%clk 0:00:51.1]} 25... exf5 {[%clk 0:00:47.5]} 26. Rb1
{[%clk 0:00:37.5]} 26... Nd7 {[%clk 0:00:12.7]} 27. Ne2 {[%clk 0:00:13.9]} 27...
e4 {[%clk 0:00:03.4]} 28. Qxa3 {[%clk 0:00:12.5]} 28... Bxa3 {[%clk 0:00:05.3]}
29. Nxe4 {[%clk 0:00:09.9]} 29... Ne5 {[%clk 0:00:06.5]} 30. Rd7 {[%clk
0:00:11.4]} 30... Nxd7 {[%clk 0:00:07.2]} 31. Ng5 {[%clk 0:00:10.9]} 31... h6
{[%clk 0:00:05.5]} 32. Ne6 {[%clk 0:00:10.8]} 32... Rf6 {[%clk 0:00:06.7]} 33.
N2f4 {[%clk 0:00:11.9]} 33... Bd6 {[%clk 0:00:06.8]} 34. Rb7 {[%clk 0:00:10.7]}
34... Nc5 {[%clk 0:00:06.6]} 0-1

[Event "GrandPrix_29.05"]
[Site "Chess.com"]
[Date "2020.05.29"]
[Round "3"]
[White "v-kazakouski"]
[Black "Kiril1965"]
[Result "0-1"]
[WhiteElo "2390"]
[BlackElo "2540"]
[TimeControl "600+2"]
[EndTime "10:27:08 PDT"]
[Termination "Kiril1965 won by resignation"]

1. d4 {[%clk 0:09:58.2]} 1... Nf6 {[%clk 0:09:58.4]} 2. Nf3 {[%clk 0:09:57.7]}
2... e6 {[%clk 0:09:58.7]} 3. c4 {[%clk 0:09:57.2]} 3... b6 {[%clk 0:09:55]} 4.
g3 {[%clk 0:09:56.5]} 4... Ba6 {[%clk 0:09:45.1]} 5. Qb3 {[%clk 0:09:46]} 5...
Nc6 {[%clk 0:09:34.6]} 6. Nbd2 {[%clk 0:09:42.2]} 6... Na5 {[%clk 0:08:58.6]} 7.
Qc3 {[%clk 0:09:39.2]} 7... c5 {[%clk 0:08:54.1]} 8. dxc5 {[%clk 0:09:32.3]}
8... bxc5 {[%clk 0:08:53.6]} 9. e4 {[%clk 0:09:22.8]} 9... Bb7 {[%clk
0:08:50.3]} 10. e5 {[%clk 0:09:14]} 10... Ne4 {[%clk 0:08:45.5]} 11. Nxe4 {[%clk
0:09:12.4]} 11... Bxe4 {[%clk 0:08:45.9]} 12. Bg2 {[%clk 0:09:11.5]} 12... Be7
{[%clk 0:08:44.3]} 13. O-O {[%clk 0:09:03.2]} 13... O-O {[%clk 0:08:44.4]} 14.
Qe3 {[%clk 0:08:16.3]} 14... Bc6 {[%clk 0:08:24.2]} 15. b3 {[%clk 0:07:31.4]}
15... Nb7 {[%clk 0:08:20.5]} 16. Bb2 {[%clk 0:07:00.6]} 16... a5 {[%clk
0:08:18.4]} 17. a4 {[%clk 0:05:52.8]} 17... Qb6 {[%clk 0:08:05.5]} 18. Rad1
{[%clk 0:05:29]} 18... Rfd8 {[%clk 0:07:40.4]} 19. Rd3 {[%clk 0:04:13.7]} 19...
d5 {[%clk 0:06:59.1]} 20. exd6 {[%clk 0:04:02.5]} 20... Nxd6 {[%clk 0:06:31]}
21. Ne5 {[%clk 0:02:53]} 21... Nf5 {[%clk 0:05:57.2]} 22. Qe2 {[%clk 0:02:15.8]}
22... Bxg2 {[%clk 0:05:52.1]} 23. Kxg2 {[%clk 0:02:17.7]} 23... Rxd3 {[%clk
0:05:35.6]} 24. Qxd3 {[%clk 0:02:08.9]} 24... Rb8 {[%clk 0:04:30.9]} 25. Rd1
{[%clk 0:00:47.9]} 25... f6 {[%clk 0:03:56.8]} 26. Nd7 {[%clk 0:00:36]} 26...
Qc6+ {[%clk 0:03:28]} 27. Kh3 {[%clk 0:00:16]} 27... Rd8 {[%clk 0:03:23.5]} 28.
Bc3 {[%clk 0:00:06.7]} 28... Nd6 {[%clk 0:02:17.8]} 29. Nxf6+ {[%clk 0:00:04.5]}
29... gxf6 {[%clk 0:02:07.3]} 30. Bxa5 {[%clk 0:00:05.7]} 30... Ra8 {[%clk
0:01:58.7]} 31. Bc3 {[%clk 0:00:04.7]} 31... Ne4 {[%clk 0:01:55.1]} 32. Qe3
{[%clk 0:00:04.7]} 32... Rb8 {[%clk 0:01:35.5]} 33. Ba1 {[%clk 0:00:03.1]} 33...
Ng5+ {[%clk 0:01:33.3]} 34. Kh4 {[%clk 0:00:02.9]} 34... Kf7 {[%clk 0:01:25.3]}
35. Rd3 {[%clk 0:00:02.9]} 35... Qe4+ {[%clk 0:01:16.3]} 36. Qxe4 {[%clk
0:00:03.5]} 36... Nxe4 {[%clk 0:01:17.4]} 37. f4 {[%clk 0:00:03.8]} 37... f5+
{[%clk 0:01:17.2]} 38. Kh5 {[%clk 0:00:05.1]} 38... Rb7 {[%clk 0:01:09.5]} 39.
Be5 {[%clk 0:00:06]} 39... Nf2 {[%clk 0:01:00]} 40. Rf3 {[%clk 0:00:05.5]} 40...
Ng4 {[%clk 0:00:59.8]} 41. h3 {[%clk 0:00:04.5]} 41... Nf6+ {[%clk 0:00:57.2]}
42. Kh6 {[%clk 0:00:02.7]} 42... Bf8+ {[%clk 0:00:56.2]} 43. Kg5 {[%clk
0:00:03.4]} 43... h6+ {[%clk 0:00:56.8]} 44. Kh4 {[%clk 0:00:04.2]} 44... Be7
{[%clk 0:00:57.8]} 45. Rd3 {[%clk 0:00:04.1]} 45... Kg6 {[%clk 0:00:55.9]} 46.
g4 {[%clk 0:00:04]} 46... Ne4+ {[%clk 0:00:55.6]} 0-1

[Event "GrandPrix_29.05"]
[Site "Chess.com"]
[Date "2020.05.29"]
[Round "3"]
[White "EvgenyRomanov"]
[Black "Khvicha_Supatashvili"]
[Result "0-1"]
[WhiteElo "1799"]
[BlackElo "1940"]
[TimeControl "600+2"]
[EndTime "10:27:10 PDT"]
[Termination "Khvicha_Supatashvili won by resignation"]

1. e4 {[%clk 0:09:59.1]} 1... c5 {[%clk 0:09:54.3]} 2. Nf3 {[%clk 0:09:57.2]}
2... Nc6 {[%clk 0:09:54.8]} 3. Bb5 {[%clk 0:09:57.1]} 3... g6 {[%clk 0:09:55.1]}
4. Bxc6 {[%clk 0:09:57.2]} 4... bxc6 {[%clk 0:09:55.7]} 5. O-O {[%clk
0:09:55.2]} 5... Bg7 {[%clk 0:09:55.7]} 6. Re1 {[%clk 0:09:54.3]} 6... Qc7
{[%clk 0:09:54.7]} 7. c3 {[%clk 0:09:48.8]} 7... d6 {[%clk 0:09:46.3]} 8. h3
{[%clk 0:09:47.7]} 8... Nf6 {[%clk 0:08:46]} 9. d4 {[%clk 0:09:44.5]} 9... cxd4
{[%clk 0:08:46.1]} 10. cxd4 {[%clk 0:09:46.4]} 10... O-O {[%clk 0:08:41.1]} 11.
Nc3 {[%clk 0:09:44.9]} 11... c5 {[%clk 0:07:44.3]} 12. e5 {[%clk 0:09:33.2]}
12... dxe5 {[%clk 0:07:44.8]} 13. dxe5 {[%clk 0:09:30.9]} 13... Rd8 {[%clk
0:07:46]} 14. Qa4 {[%clk 0:09:11.2]} 14... Nh5 {[%clk 0:07:16.2]} 15. g4 {[%clk
0:07:11.6]} 15... Bb7 {[%clk 0:07:14.7]} 16. Ne4 {[%clk 0:07:11.5]} 16... f5
{[%clk 0:06:32.1]} 17. Neg5 {[%clk 0:06:04.3]} 17... fxg4 {[%clk 0:06:25.7]} 18.
hxg4 {[%clk 0:06:01.3]} 18... Qc8 {[%clk 0:05:27.5]} 19. Be3 {[%clk 0:03:40.9]}
19... Rd4 {[%clk 0:04:35.8]} 20. Bxd4 {[%clk 0:03:37.4]} 20... Qxg4+ {[%clk
0:04:35]} 21. Kf1 {[%clk 0:03:36.6]} 21... Nf4 {[%clk 0:04:07.9]} 22. Re3 {[%clk
0:02:51.1]} 22... cxd4 {[%clk 0:03:49.2]} 23. Qxd4 {[%clk 0:02:45.6]} 23... Ba6+
{[%clk 0:03:18.6]} 24. Ke1 {[%clk 0:02:36.6]} 24... Ng2+ {[%clk 0:03:18]} 25.
Kd2 {[%clk 0:02:24.3]} 25... Nxe3 {[%clk 0:03:17.6]} 26. Kxe3 {[%clk 0:01:46.2]}
26... Qxd4+ {[%clk 0:03:12.8]} 27. Kxd4 {[%clk 0:01:13.1]} 27... Rf8 {[%clk
0:03:07.8]} 28. Ke3 {[%clk 0:00:36.7]} 28... Bb7 {[%clk 0:02:30.8]} 29. Nd4
{[%clk 0:00:19.8]} 29... Bxe5 {[%clk 0:02:27.3]} 30. Nge6 {[%clk 0:00:20.7]}
30... Rc8 {[%clk 0:02:00.8]} 31. f4 {[%clk 0:00:21.7]} 31... Bf6 {[%clk
0:01:51.5]} 32. Rd1 {[%clk 0:00:19.8]} 32... h5 {[%clk 0:01:44.6]} 33. Rg1
{[%clk 0:00:17.5]} 33... Kf7 {[%clk 0:01:42.6]} 34. Ng5+ {[%clk 0:00:18.5]}
34... Bxg5 {[%clk 0:01:29.2]} 35. Rxg5 {[%clk 0:00:20.4]} 35... h4 {[%clk
0:01:10.8]} 36. f5 {[%clk 0:00:20.1]} 36... gxf5 {[%clk 0:00:52.9]} 37. Rxf5+
{[%clk 0:00:21]} 37... Kg6 {[%clk 0:00:52.9]} 38. Rf2 {[%clk 0:00:21.3]} 38...
h3 {[%clk 0:00:49.5]} 39. Ne6 {[%clk 0:00:22.2]} 39... Rh8 {[%clk 0:00:43.5]}
40. Rh2 {[%clk 0:00:22.2]} 40... Kf5 {[%clk 0:00:41.6]} 41. Nf4 {[%clk
0:00:22.4]} 41... Kg4 {[%clk 0:00:42.2]} 42. Ng6 {[%clk 0:00:21.6]} 42... Rh5
{[%clk 0:00:40.6]} 43. Nf4 {[%clk 0:00:21.6]} 43... Re5+ {[%clk 0:00:40.8]} 44.
Kd4 {[%clk 0:00:20.6]} 44... Re4+ {[%clk 0:00:41.5]} 45. Kc5 {[%clk 0:00:20.4]}
45... Rxf4 {[%clk 0:00:42.1]} 0-1

[Event "GrandPrix_29.05"]
[Site "Chess.com"]
[Date "2020.05.29"]
[Round "3"]
[White "SpasKozhuharov"]
[Black "Kezin_Roman"]
[Result "0-1"]
[WhiteElo "2228"]
[BlackElo "2647"]
[TimeControl "600+2"]
[EndTime "10:27:12 PDT"]
[Termination "Kezin_Roman won by resignation"]

1. c4 {[%clk 0:10:01.9]} 1... e6 {[%clk 0:09:59.2]} 2. Nc3 {[%clk 0:10:01.5]}
2... d5 {[%clk 0:09:58.7]} 3. d4 {[%clk 0:10:02.2]} 3... c6 {[%clk 0:09:58.4]}
4. Nf3 {[%clk 0:09:42.6]} 4... Nf6 {[%clk 0:09:57.3]} 5. e3 {[%clk 0:09:36]}
5... Nbd7 {[%clk 0:09:56]} 6. Qc2 {[%clk 0:09:34.2]} 6... Bd6 {[%clk 0:09:54.9]}
7. g4 {[%clk 0:09:34.4]} 7... dxc4 {[%clk 0:09:31.7]} 8. g5 {[%clk 0:09:30.9]}
8... Nd5 {[%clk 0:09:30.5]} 9. Bxc4 {[%clk 0:09:30.5]} 9... b5 {[%clk
0:09:15.9]} 10. Be2 {[%clk 0:09:05.9]} 10... Bb7 {[%clk 0:09:05.5]} 11. Ne4
{[%clk 0:08:58.6]} 11... Be7 {[%clk 0:09:01.3]} 12. Bd2 {[%clk 0:08:46]} 12...
Nb4 {[%clk 0:06:22.9]} 13. Qb3 {[%clk 0:08:20.2]} 13... a5 {[%clk 0:06:18]} 14.
a3 {[%clk 0:08:06.1]} 14... a4 {[%clk 0:06:13.5]} 15. Qd1 {[%clk 0:07:57.8]}
15... Na6 {[%clk 0:05:53.4]} 16. Rc1 {[%clk 0:07:36.6]} 16... O-O {[%clk
0:05:43.4]} 17. h4 {[%clk 0:07:17.8]} 17... c5 {[%clk 0:05:10.8]} 18. Nxc5
{[%clk 0:07:17.4]} 18... Naxc5 {[%clk 0:05:09.7]} 19. dxc5 {[%clk 0:07:18]}
19... Nxc5 {[%clk 0:04:58]} 20. Kf1 {[%clk 0:07:04.8]} 20... Nb3 {[%clk
0:04:50.2]} 21. Bc3 {[%clk 0:06:33.7]} 21... Nxc1 {[%clk 0:04:43.7]} 22. Qxc1
{[%clk 0:06:34.7]} 22... Rc8 {[%clk 0:04:29]} 23. Qe1 {[%clk 0:06:30.2]} 23...
Be4 {[%clk 0:03:03.9]} 24. Rh3 {[%clk 0:05:45.8]} 24... Qd5 {[%clk 0:03:03.6]}
25. Kg1 {[%clk 0:05:31.9]} 25... Qf5 {[%clk 0:03:02.5]} 26. Rg3 {[%clk
0:05:21.1]} 26... Bd6 {[%clk 0:03:02.7]} 27. Nd4 {[%clk 0:05:20.1]} 27... Qd5
{[%clk 0:02:58]} 28. Rg4 {[%clk 0:05:06.7]} 28... Rb8 {[%clk 0:02:34.5]} 29. f3
{[%clk 0:04:33.7]} 29... Bg6 {[%clk 0:02:34.6]} 30. Qf2 {[%clk 0:03:08.7]} 30...
e5 {[%clk 0:01:40.8]} 31. e4 {[%clk 0:03:01.9]} 31... Qc5 {[%clk 0:01:11.5]} 32.
Nf5 {[%clk 0:02:52.6]} 32... Qxf2+ {[%clk 0:01:10.2]} 33. Kxf2 {[%clk
0:02:53.8]} 33... Bc5+ {[%clk 0:01:12.1]} 34. Ke1 {[%clk 0:02:52]} 34... Rfe8
{[%clk 0:01:05.1]} 35. Ng3 {[%clk 0:02:35.2]} 35... b4 {[%clk 0:00:50.9]} 36.
axb4 {[%clk 0:02:29.7]} 36... Bxb4 {[%clk 0:00:52.8]} 37. h5 {[%clk 0:01:26.9]}
37... a3 {[%clk 0:00:46.4]} 38. hxg6 {[%clk 0:01:01.2]} 38... axb2 {[%clk
0:00:12.8]} 39. gxf7+ {[%clk 0:00:51.8]} 39... Kxf7 {[%clk 0:00:14.7]} 40. Bc4+
{[%clk 0:00:36.4]} 40... Kg6 {[%clk 0:00:14.2]} 0-1

[Event "GrandPrix_29.05"]
[Site "Chess.com"]
[Date "2020.05.29"]
[Round "3"]
[White "JonahWillow"]
[Black "ebret"]
[Result "1-0"]
[WhiteElo "2275"]
[BlackElo "2089"]
[TimeControl "600+2"]
[EndTime "10:27:13 PDT"]
[Termination "JonahWillow won by resignation"]

1. e4 {[%clk 0:10:01.9]} 1... e5 {[%clk 0:09:59.8]} 2. Nf3 {[%clk 0:09:59.5]}
2... Nc6 {[%clk 0:10:00.4]} 3. Nc3 {[%clk 0:10:01.1]} 3... Nf6 {[%clk
0:09:56.7]} 4. Bb5 {[%clk 0:10:01.7]} 4... Bc5 {[%clk 0:09:48.7]} 5. O-O {[%clk
0:10:02.2]} 5... O-O {[%clk 0:09:47.9]} 6. Nxe5 {[%clk 0:10:02.5]} 6... Nxe5
{[%clk 0:09:48.5]} 7. d4 {[%clk 0:10:03.1]} 7... Bd6 {[%clk 0:09:44.6]} 8. f4
{[%clk 0:10:04.1]} 8... Nc6 {[%clk 0:09:33.1]} 9. e5 {[%clk 0:10:04.1]} 9... Be7
{[%clk 0:09:34]} 10. d5 {[%clk 0:10:05.3]} 10... Bc5+ {[%clk 0:08:52.7]} 11. Kh1
{[%clk 0:10:04.8]} 11... Nxd5 {[%clk 0:08:53.5]} 12. Qxd5 {[%clk 0:08:56.7]}
12... d6 {[%clk 0:08:41.9]} 13. Ne4 {[%clk 0:07:27.5]} 13... Be6 {[%clk
0:08:35.3]} 14. Qd1 {[%clk 0:07:26.7]} 14... Nd4 {[%clk 0:08:14.6]} 15. Bd3
{[%clk 0:07:20.6]} 15... Qd7 {[%clk 0:07:51.7]} 16. c3 {[%clk 0:06:38.7]} 16...
Nf5 {[%clk 0:07:12.9]} 17. Qh5 {[%clk 0:05:24.8]} 17... Bb6 {[%clk 0:06:15.6]}
18. g4 {[%clk 0:04:15.9]} 18... dxe5 {[%clk 0:05:09.6]} 19. Bc2 {[%clk
0:02:57.7]} 19... Nh6 {[%clk 0:03:58.1]} 20. f5 {[%clk 0:02:51]} 20... Bd5
{[%clk 0:03:56.9]} 21. Bxh6 {[%clk 0:02:08]} 21... Qc6 {[%clk 0:03:33.1]} 22.
Rae1 {[%clk 0:01:49.1]} 22... Qxh6 {[%clk 0:03:28]} 23. Qxh6 {[%clk 0:01:46.4]}
23... gxh6 {[%clk 0:03:29.9]} 24. f6 {[%clk 0:01:41.6]} 24... Rfe8 {[%clk
0:02:44.9]} 25. Kg2 {[%clk 0:01:39.7]} 25... Re6 {[%clk 0:02:41.1]} 26. Kg3
{[%clk 0:01:38.6]} 26... Bxe4 {[%clk 0:02:26.1]} 27. Bxe4 {[%clk 0:01:34.6]}
27... c6 {[%clk 0:02:26.5]} 28. h4 {[%clk 0:01:28.4]} 28... Rd8 {[%clk
0:02:18.2]} 29. Re2 {[%clk 0:01:23.9]} 29... Red6 {[%clk 0:02:18]} 30. Rf5
{[%clk 0:01:07.1]} 30... Bc7 {[%clk 0:01:46.9]} 31. Rh5 {[%clk 0:01:05.3]} 31...
Rxf6 {[%clk 0:01:46.5]} 32. g5 {[%clk 0:01:05.8]} 32... hxg5 {[%clk 0:01:43.7]}
33. hxg5 {[%clk 0:01:02.5]} 33... Rfd6 {[%clk 0:01:33.6]} 34. Rxh7 {[%clk
0:00:58]} 34... Rd2 {[%clk 0:01:18.3]} 35. Rxd2 {[%clk 0:00:52.5]} 35... Rxd2
{[%clk 0:01:20.2]} 36. g6 {[%clk 0:00:54.2]} 36... Rd7 {[%clk 0:01:09.6]} 37.
Kg4 {[%clk 0:00:50.4]} 37... Bd8 {[%clk 0:00:53.8]} 38. Bf5 {[%clk 0:00:47.3]}
38... Re7 {[%clk 0:00:33.4]} 39. g7 {[%clk 0:00:37.3]} 39... Bb6 {[%clk
0:00:11.5]} 40. Kg5 {[%clk 0:00:38.5]} 40... f6+ {[%clk 0:00:08.6]} 41. Kg6
{[%clk 0:00:27.2]} 1-0

[Event "GrandPrix_29.05"]
[Site "Chess.com"]
[Date "2020.05.29"]
[Round "3"]
[White "Bacyanide"]
[Black "VerdeNotte"]
[Result "0-1"]
[WhiteElo "2281"]
[BlackElo "2671"]
[TimeControl "600+2"]
[EndTime "10:27:14 PDT"]
[Termination "VerdeNotte won by resignation"]

1. d4 {[%clk 0:10:01.9]} 1... Nf6 {[%clk 0:08:55]} 2. Nf3 {[%clk 0:10:01.8]}
2... g6 {[%clk 0:08:53.1]} 3. c4 {[%clk 0:10:01]} 3... Bg7 {[%clk 0:08:51.8]} 4.
Nc3 {[%clk 0:10:01.8]} 4... O-O {[%clk 0:08:49.2]} 5. e4 {[%clk 0:10:02.2]} 5...
d6 {[%clk 0:08:50]} 6. Be2 {[%clk 0:10:03.3]} 6... Nbd7 {[%clk 0:08:48.2]} 7.
O-O {[%clk 0:10:02.4]} 7... e6 {[%clk 0:08:48.7]} 8. h3 {[%clk 0:09:27.6]} 8...
b6 {[%clk 0:08:41.5]} 9. Be3 {[%clk 0:09:20]} 9... Bb7 {[%clk 0:08:38.2]} 10. d5
{[%clk 0:09:21.2]} 10... e5 {[%clk 0:08:26.6]} 11. b4 {[%clk 0:09:18.4]} 11...
a5 {[%clk 0:08:27.3]} 12. a3 {[%clk 0:09:18.8]} 12... Nh5 {[%clk 0:07:59.1]} 13.
Re1 {[%clk 0:08:50.7]} 13... f5 {[%clk 0:06:10.8]} 14. Ng5 {[%clk 0:08:38.5]}
14... f4 {[%clk 0:05:59]} 15. Ne6 {[%clk 0:08:33.2]} 15... fxe3 {[%clk
0:05:55.2]} 16. fxe3 {[%clk 0:08:21]} 16... Qh4 {[%clk 0:05:35.6]} 17. Bxh5
{[%clk 0:08:11]} 17... axb4 {[%clk 0:04:42.3]} 18. axb4 {[%clk 0:05:40.9]} 18...
Rxa1 {[%clk 0:04:13.6]} 19. Qxa1 {[%clk 0:05:40.7]} 19... Ra8 {[%clk 0:03:52.6]}
20. Qc1 {[%clk 0:05:21.1]} 20... gxh5 {[%clk 0:03:41.1]} 21. Nxc7 {[%clk
0:05:19]} 21... Rf8 {[%clk 0:03:34.3]} 22. Ne6 {[%clk 0:05:07.1]} 22... Rf2
{[%clk 0:03:07.1]} 23. Rf1 {[%clk 0:04:47.7]} 23... Rxf1+ {[%clk 0:03:07.8]} 24.
Qxf1 {[%clk 0:04:45.4]} 24... Qg3 {[%clk 0:03:00]} 25. Nb5 {[%clk 0:03:19.5]}
25... Qxe3+ {[%clk 0:02:46.4]} 26. Kh1 {[%clk 0:02:41.6]} 26... Nf6 {[%clk
0:02:43.2]} 27. Nxd6 {[%clk 0:02:41.4]} 27... Qd2 {[%clk 0:01:27.3]} 28. Qf5
{[%clk 0:01:55.2]} 28... Ba8 {[%clk 0:00:40.9]} 29. Nxg7 {[%clk 0:01:25.3]}
29... Kxg7 {[%clk 0:00:28.7]} 30. Qxe5 {[%clk 0:01:26.4]} 30... Kg6 {[%clk
0:00:19.1]} 31. c5 {[%clk 0:00:51.6]} 31... bxc5 {[%clk 0:00:17.3]} 32. bxc5
{[%clk 0:00:52]} 32... Qe1+ {[%clk 0:00:09.6]} 33. Kh2 {[%clk 0:00:52.6]} 33...
Qh4 {[%clk 0:00:08.8]} 34. Qg3+ {[%clk 0:00:17.2]} 34... Ng4+ {[%clk 0:00:09.9]}
35. Qxg4+ {[%clk 0:00:09.7]} 35... hxg4 {[%clk 0:00:11.1]} 36. Nf5 {[%clk
0:00:07.9]} 36... g3+ {[%clk 0:00:12.4]} 37. Kh1 {[%clk 0:00:08.6]} 37... Qf4
{[%clk 0:00:11.5]} 0-1